bitfinex-derivatives/quotes_ETHF0:USTF0_20250330
["timestamp","ask_amount","ask_price","bid_price","bid_amount"]
[1743357611793,5.2214,1805.5,1805.4,2.60826]
[1743357612086,0.7597,1805.7,1805.6,1.10808]
[1743357612293,2.1604,1805.7,1805.6,1.10808]
[1743357612788,1.82692,1805.9,1805.8,1.10796]
[1743357612789,4.445,1805.9,1805.8,1.10796]
[1743357612993,3.2078,1806.0,1805.9,1.1079]
[1743357613296,6.9338,1806.0,1805.9,1.1079]
[1743357614295,3.2078,1806.0,1805.9,1.1079]
[1743357615095,3.2078,1806.0,1805.9,2.5744]
[1743357615393,3.2078,1806.4,1805.9,7.1743]
[1743357615691,4.6104,1806.4,1806.3,1.10765]
[1743357616691,1.4026,1806.4,1806.3,1.10765]
[1743357623894,1.4026,1806.4,1806.2,2.57419]
[1743357624096,1.4026,1806.4,1806.3,1.10765]
[1743357626106,3.2078,1806.8,1806.5,1.10753]
[1743357626399,28.96952419,1807.8,1806.6,10.733]
[1743357626598,1.3871,1807.5,1807.4,1.10698]
[1743357627200,3.2078,1807.6,1807.5,1.10692]
[1743357627601,4.6444,1807.6,1807.5,1.10692]
[1743357628003,4.6444,1807.6,1807.4,1.407]
[1743357628004,5.7513,1807.6,1807.3,1.5612861]
[1743357628206,4.6444,1807.6,1807.4,1.10698]
[1743357628407,8.3674,1807.6,1807.5,1.10692]
[1743357629707,3.2078,1807.6,1807.5,1.10692]
[1743357629907,4.5848,1807.6,1807.5,1.10692]
[1743357630306,4.5848,1807.6,1807.3,0.00831025]
[1743357630496,3.2078,1807.6,1807.3,0.00831025]
[1743357630801,3.2078,1807.6,1807.3,1.43981025]
[1743357631010,4.5848,1807.6,1807.4,1.10696]
[1743357631307,4.5848,1807.6,1807.5,2.53842]
[1743357631507,4.5848,1807.6,1807.5,1.4315]
[1743357631707,4.5848,1807.6,1807.5,2.53842]
[1743357632612,1.377,1807.6,1807.5,2.53842]
[1743357634001,6.9288,1808.1,1807.9,1.10663]
[1743357634311,1.4145,1808.0,1807.9,1.10667]
[1743357634508,3.2078,1808.1,1808.0,1.10661]
[1743357634808,4.6223,1808.1,1807.8,1.4976]
[1743357635010,0.7394,1808.0,1807.8,1.4976]
[1743357635204,3.2078,1808.1,1807.8,1.4976]
[1743357635398,3.2078,1808.1,1808.0,1.10661]
[1743357635603,3.2078,1808.1,1807.8,1.4976]
[1743357635799,3.2078,1808.1,1808.0,1.10661]
[1743357636400,5.05367,1808.3,1807.9,1.10663]
[1743357636610,6.3072,1808.2,1807.9,1.10663]
[1743357637115,6.3072,1808.2,1808.0,1.10661]
[1743357637309,5.2007,1808.2,1808.0,1.10661]
[1743357637805,6.30719,1808.2,1807.8,1.4976]
[1743357638007,1.10677,1807.8,1807.4,0.7334]
[1743357638209,1.4807,1807.7,1807.5,1.4507]
[1743357638515,4.00945,1807.7,1807.5,1.4507]
[1743357638811,3.2078,1807.6,1806.7,3.2078]
[1743357639001,3.2078,1807.4,1807.1,1.5033]
[1743357639206,3.2078,1807.4,1806.9,3.2078]
[1743357639207,3.2078,1807.2,1806.8,7.07621845]
[1743357639409,1.4398,1807.1,1806.9,1.10728]
[1743357639611,1.4398,1807.1,1806.8,1.1073]
[1743357640010,1.44811025,1807.1,1806.8,0.00831025]
[1743357640213,2.55530025,1807.1,1806.8,1.11565025]
[1743357640409,3.2078,1807.0,1806.8,1.11565025]
[1743357640710,5.1588,1806.9,1806.8,1.11565025]
[1743357640912,3.719,1806.9,1806.8,1.11565025]
[1743357643314,3.719,1806.9,1806.8,1.11566025]
[1743357645518,3.719,1806.9,1806.8,0.00831025]
[1743357645811,5.139,1806.9,1806.8,0.00831025]
[1743357646114,5.139,1806.9,1806.8,1.11566025]
[1743357647715,5.139,1806.9,1806.8,0.00831025]
[1743357648714,6.24628,1806.9,1806.8,0.00831025]
[1743357652216,8.74628,1806.9,1806.8,0.00831025]
[1743357652411,2.76874,1806.6,1806.0,1.81432]
[1743357652610,1.10769,1806.3,1806.0,1.81432]
[1743357652809,5.1972,1806.2,1806.0,1.81432]
[1743357653209,4.6035,1806.5,1806.4,1.10759]
[1743357653412,3.719,1806.8,1806.6,1.10742]
[1743357653611,1.4782,1806.7,1806.6,1.10742]
[1743357653808,1.4782,1806.7,1806.5,1.1075]
[1743357654013,1.4782,1806.7,1806.6,1.10747]
[1743357654314,1.4782,1806.7,1806.3,3.21611025]
[1743357654315,1.4782,1806.7,1806.5,1.10747]
[1743357654617,1.4782,1806.7,1806.6,1.10747]
[1743357656021,1.4782,1806.7,1806.5,1.10749]
[1743357656517,1.4782,1806.7,1806.6,1.10747]
[1743357658320,1.4782,1806.7,1806.3,3.21611025]
[1743357658519,1.4782,1806.7,1806.5,1.10747]
[1743357659114,1.4782,1806.7,1806.3,3.21611025]
[1743357659314,5.79344,1806.7,1806.3,3.21611025]
[1743357659624,5.79344,1806.7,1806.5,1.10749]
[1743357659625,4.686,1806.7,1806.5,1.10749]
[1743357659919,4.82638,1806.8,1806.6,1.10743]
[1743357660110,4.82638,1806.8,1806.7,1.4863]
[1743357660316,6.22228,1806.8,1806.7,1.4863]
[1743357660922,5.1149,1806.8,1806.7,1.4863]
[1743357661625,5.1149,1806.8,1806.7,2.59371]
[1743357662019,5.1149,1806.8,1806.7,1.4863]
[1743357663125,6.22225,1806.8,1806.7,1.4863]
[1743357663423,5.1149,1806.8,1806.7,1.4863]
[1743357664327,5.1149,1806.8,1806.7,2.59371]
[1743357664522,6.22225,1806.8,1806.7,1.4863]
[1743357664727,5.1149,1806.8,1806.7,2.59371]
[1743357665925,3.2078,1806.9,1806.8,1.10735]
[1743357666123,0.00831025,1807.1,1807.0,1.10722]
[1743357667228,0.00831025,1807.1,1807.0,2.61112]
[1743357667731,0.00831025,1807.1,1807.0,3.05373904]
[1743357668125,55.46868,1807.6,1807.1,2.76791]
[1743357668126,3.719,1807.6,1807.1,2.76791]
[1743357668426,6.133,1807.8,1807.3,3.2078]
[1743357668630,6.133,1807.8,1807.6,1.10681]
[1743357668929,9.852,1807.8,1807.7,1.10679]
[1743357669129,10.95875,1807.8,1807.6,0.00831025]
[1743357669326,10.95875,1807.8,1807.6,1.51221025]
[1743357669526,9.852,1807.8,1807.6,1.51221025]
[1743357669729,6.6442,1807.8,1807.7,1.10679]
[1743357669933,6.6442,1807.8,1807.6,2.61902025]
[1743357671631,7.75093,1807.8,1807.7,1.4571]
[1743357671832,6.6442,1807.8,1807.7,1.4571]
[1743357672628,7.75093,1807.8,1807.7,1.4571]
[1743357672828,6.6442,1807.8,1807.7,1.4571]
[1743357673335,6.6442,1807.8,1807.7,2.56389]
[1743357673634,3.72631025,1807.9,1807.8,1.10673]
[1743357673835,5.11581025,1807.9,1807.8,1.10673]
[1743357674028,5.11581025,1807.9,1807.7,1.4571]
[1743357674229,3.2078,1807.8,1807.7,1.4571]
[1743357674435,4.5973,1807.8,1807.7,1.4571]
[1743357674836,5.70403,1807.8,1807.7,1.4571]
[1743357675129,6.45133,1807.8,1807.7,1.4571]
[1743357675331,7.19993,1807.8,1807.7,1.4571]
[1743357676236,2.8854,1807.8,1807.7,1.4571]
[1743357677034,3.99213,1807.8,1807.7,1.4571]
[1743357677330,3.99213,1807.8,1807.6,0.00831025]
[1743357677331,1.10679,1807.7,1807.6,0.00831025]
[1743357677537,1.4773,1807.7,1807.6,0.00831025]
[1743357677736,2.58409,1807.7,1807.6,0.00831025]
[1743357678743,2.58409,1807.7,1807.6,1.52141025]
[1743357678926,2.58409,1807.7,1807.6,0.00831025]
[1743357679333,2.76718,1807.6,1807.0,4.315]
[1743357679527,2.76718,1807.6,1807.1,2.49515]
[1743357679528,1.10707,1807.3,1807.1,2.49515]
[1743357679730,1.10702,1807.4,1807.1,2.49515]
[1743357679932,2.60322,1807.4,1807.2,1.388]
[1743357680440,2.60322,1807.4,1807.2,2.49508]
[1743357680638,1.4962,1807.4,1807.2,2.49505]
[1743357680940,5.2132,1807.4,1807.3,1.388]
[1743357681437,5.2132,1807.4,1807.3,2.49504]
[1743357681834,1.4962,1807.4,1807.3,1.388]
[1743357682039,3.717,1807.4,1807.3,2.49504]
[1743357682439,3.717,1807.5,1807.3,2.49504]
[1743357682631,4.82392,1807.5,1807.4,1.4256]
[1743357683134,8.03172,1807.5,1807.4,1.4256]
[1743357683328,6.9248,1807.5,1807.1,0.00831025]
[1743357683536,1.10707,1807.3,1807.1,1.11545025]
[1743357684229,2.50252,1807.4,1807.1,1.11543025]
[1743357684434,2.50252,1807.4,1807.2,2.5327]
[1743357685037,2.50252,1807.4,1807.2,1.4256]
[1743357685238,1.1071,1807.2,1807.1,0.00831025]
[1743357685443,4.8241,1807.2,1807.1,0.00831025]
[1743357688344,4.8241,1807.2,1806.5,11.32569706]
[1743357688345,2.76802,1807.1,1806.6,1.4128]
[1743357688644,1.10741,1806.7,1806.6,1.4128]
[1743357688845,4.82441,1806.7,1806.6,1.4128]
[1743357689545,1.10752,1806.6,1806.4,1.4128]
[1743357689748,1.85752,1806.6,1806.5,0.00831025]
[1743357695040,0.00831025,1806.8,1806.5,0.00831025]
[1743357695243,3.72631025,1806.8,1806.5,1.45781025]
[1743357695442,3.72631025,1806.8,1806.7,1.10741]
[1743357696343,3.72631025,1806.8,1806.5,2.92371025]
[1743357696344,3.72631025,1806.8,1806.6,1.10744]
[1743357696549,4.83366025,1806.8,1806.7,1.4495]
[1743357696747,3.72631025,1806.8,1806.7,1.4495]
[1743357696948,4.83366025,1806.8,1806.7,1.4495]
[1743357698251,3.72631025,1806.8,1806.7,1.4495]
[1743357698454,4.83366025,1806.8,1806.7,1.4495]
[1743357700747,6.22346025,1806.8,1806.7,1.4495]
[1743357701342,1.10747,1806.6,1806.5,0.00831025]
[1743357701550,4.31527,1806.6,1806.5,0.00831025]
[1743357702053,6.46357,1806.6,1806.5,0.00831025]
[1743357702654,3.718,1806.6,1806.5,1.11582025]
[1743357703851,4.82547,1806.6,1806.5,0.00831025]
[1743357705742,4.82547,1806.6,1806.5,1.52841025]
[1743357714158,1.10771,1806.2,1806.1,1.4114]
[1743357715260,1.10771,1806.2,1806.1,0.7024]
[1743357715458,2.52561,1806.2,1806.1,2.1048]
[1743357716155,2.52561,1806.2,1806.1,1.4024]
[1743357717458,6.24261,1806.2,1806.1,1.4024]
[1743357718151,1.10768,1806.3,1806.1,1.4024]
[1743357718356,4.82471,1806.2,1806.1,1.4024]
[1743357718757,3.717,1806.2,1806.1,1.4024]
[1743357719264,4.82471,1806.2,1806.1,1.4024]
[1743357722965,1.4919,1806.5,1806.1,1.4024]
[1743357723260,5.1581,1806.6,1806.4,3.2078]
[1743357723461,4.82447,1806.6,1806.5,1.4884]
[1743357724864,1.80826,1806.7,1806.5,1.4884]
[1743357725071,3.717,1806.6,1806.5,1.4884]
[1743357725567,3.717,1806.6,1806.5,2.59593]
[1743357726166,3.717,1806.6,1806.5,1.4884]
[1743357726469,6.96526,1806.7,1806.5,2.59593]
[1743357726969,6.96526,1806.7,1806.6,1.4399]
[1743357727666,3.717,1806.7,1806.6,2.54737]
[1743357728864,5.15441025,1806.8,1806.6,1.4399]
[1743357729168,5.15441025,1806.8,1806.7,1.5057]
[1743357730165,5.15441025,1806.8,1806.7,2.61311]
[1743357730365,5.15441025,1806.8,1806.7,1.5057]
[1743357730764,5.15441025,1806.8,1806.7,2.61311]
[1743357731262,0.00831025,1806.8,1806.7,2.61311]
[1743357732470,0.00831025,1806.8,1806.7,1.5057]
[1743357732672,2.63546025,1806.8,1806.7,1.5057]
[1743357732870,1.52811025,1806.8,1806.5,4.31532]
[1743357733167,2.9291,1806.7,1806.6,1.3927]
[1743357733372,0.00831025,1806.8,1806.6,2.50017]
[1743357733573,2.48617025,1806.8,1806.7,1.4278]
[1743357733757,1.11567025,1806.8,1806.7,1.4278]
[1743357733962,0.00831025,1806.8,1806.7,2.53521]
[1743357736476,0.00831025,1806.8,1806.7,3.23281]
[1743357736873,0.00831025,1806.8,1806.5,3.2078]
[1743357737068,1.10747,1806.6,1806.5,3.2078]
[1743357737373,1.10763,1806.4,1806.2,3.9054]
[1743357737569,4.82363,1806.4,1806.2,5.83541]
[1743357737765,3.716,1806.4,1806.3,1.10765]
[1743357738074,5.1181,1806.6,1806.5,1.10753]
[1743357738776,5.1181,1806.6,1806.5,2.62743]
[1743357739274,3.716,1806.6,1806.5,2.62743]
[1743357739665,1.10765,1806.3,1806.2,3.2078]
[1743357739864,3.716,1806.3,1806.0,0.00831025]
[1743357740171,1.10777,1806.1,1806.0,0.00831025]
[1743357740662,2.58037,1806.1,1806.0,0.00831025]
[1743357747479,1.4726,1806.1,1806.0,0.00831025]
[1743357747678,3.717,1806.3,1806.1,1.10771]
[1743357747975,1.4546,1806.6,1806.2,11.93578165]
[1743357748178,1.10762,1806.4,1806.2,11.93578165]
[1743357748381,1.10762,1806.4,1806.2,1.46]
[1743357748576,1.10765,1806.3,1806.2,1.46]
[1743357748979,3.72531025,1806.8,1806.2,14.40681187]
[1743357749184,2.61861,1806.7,1806.4,4.31536]
[1743357749377,2.61861,1806.7,1806.5,1.5078]
[1743357750085,1.5112,1806.7,1806.5,2.61532]
[1743357750688,2.61862,1806.7,1806.5,2.61532]
[1743357751387,1.10747,1806.6,1806.5,1.5078]
[1743357752187,2.50667,1806.6,1806.5,1.5078]
[1743357753290,1.3992,1806.6,1806.5,1.5078]
[1743357753684,2.50667,1806.6,1806.5,1.5078]
[1743357753883,1.3992,1806.6,1806.5,1.5078]
[1743357754291,1.3992,1806.6,1806.5,2.61533]
[1743357754683,2.50667,1806.6,1806.5,1.5078]
[1743357754890,1.3992,1806.6,1806.5,1.5078]
[1743357755198,2.50667,1806.6,1806.5,1.5078]
[1743357757298,1.10753,1806.5,1806.4,3.2078]
[1743357757491,2.54183,1806.5,1806.4,3.2078]
[1743357757691,1.4343,1806.5,1806.4,5.79029]
[1743357759100,1.4343,1806.5,1806.4,2.58249]
[1743357760601,1.82381,1806.6,1806.5,1.10753]
[1743357760802,1.10751,1806.6,1806.5,2.58303]
[1743357760995,1.10751,1806.6,1806.5,1.4755]
[1743357761194,2.52311,1806.6,1806.5,1.4755]
[1743357761395,1.10755,1806.5,1806.3,1.8667]
[1743357761593,2.52315,1806.5,1806.4,1.4607]
[1743357762001,2.52315,1806.5,1806.4,2.56829]
[1743357762200,1.4156,1806.5,1806.4,2.56829]
[1743357762395,1.82665,1806.7,1806.5,1.10751]
[1743357762590,3.24225,1806.7,1806.5,2.56821]
[1743357762796,1.10745,1806.7,1806.6,1.10747]
[1743357763001,1.42391025,1806.8,1806.7,1.10741]
[1743357763199,0.00831025,1806.8,1806.7,1.10741]
[1743357763394,0.00831025,1806.8,1806.7,3.29621]
[1743357766005,3.2078,1807.2,1806.7,3.29621]
[1743357766006,3.2078,1807.2,1807.1,1.10716]
[1743357766595,2.55986,1807.5,1807.3,1.10703]
[1743357766902,2.55986,1807.5,1807.4,1.449]
[1743357768198,1.4529,1807.5,1807.4,1.449]
[1743357769702,0.00831025,1807.6,1807.4,1.449]
[1743357769899,1.45471025,1807.6,1807.4,2.55595]
[1743357770099,1.45471025,1807.6,1807.5,1.4705]
[1743357770300,1.45471025,1807.6,1807.2,1.30901025]
[1743357770499,1.10704,1807.3,1807.2,0.00831025]
[1743357770711,8.02984,1807.3,1807.2,0.00831025]
[1743357771309,9.45364,1807.3,1807.2,0.00831025]
[1743357776721,1.10722,1807.0,1806.9,3.2078]
[1743357779016,1.10722,1807.0,1806.9,4.6201]
[1743357780318,1.3816,1807.2,1806.9,4.6201]
[1743357780517,1.10716,1807.1,1807.0,1.401]
[1743357783823,1.10728,1806.9,1806.8,0.00831025]
[1743357784025,1.10728,1806.9,1806.8,1.48931025]
[1743357784420,1.81348,1806.9,1806.8,1.48931025]
[1743357785232,0.7062,1806.9,1806.8,1.48931025]
[1743357785722,2.1849,1806.9,1806.8,1.48931025]
[1743357786424,3.29218,1806.9,1806.8,1.48931025]
[1743357787433,2.58598,1806.9,1806.8,2.59666025]
[1743357787926,2.58598,1806.9,1806.8,1.48931025]
[1743357788634,3.30868,1806.9,1806.8,1.48931025]
[1743357792126,3.714,1807.0,1806.8,2.59666025]
[1743357792127,4.82127,1807.0,1806.8,2.59666025]
[1743357792530,4.82127,1807.0,1806.9,1.4616]
[1743357792728,3.2078,1807.3,1807.2,1.1071]
[1743357793133,1.425,1807.4,1807.2,1.10706]
[1743357793134,2.53199,1807.4,1807.2,1.10706]
[1743357793440,2.53199,1807.4,1807.3,1.4616]
[1743357794140,1.425,1807.4,1807.3,2.56864]
[1743357794340,5.1703,1807.5,1807.4,1.10698]
[1743357794540,3.713,1807.5,1807.4,2.53148]
[1743357795242,2.51819025,1807.6,1807.4,2.53148]
[1743357795538,6.23119025,1807.6,1807.5,1.4245]
[1743357796534,5.12431025,1807.6,1807.5,1.4245]
[1743357797643,5.12431025,1807.6,1807.5,2.53142]
[1743357800938,5.12431025,1807.6,1807.5,1.4245]
[1743357801338,0.00831025,1807.6,1807.5,1.4245]
[1743357801537,0.00831025,1807.6,1807.5,2.53142]
[1743357801948,0.00831025,1807.6,1807.5,5.73922]
[1743357807238,0.00831025,1807.6,1807.4,1.4459]
[1743357807239,0.00831025,1807.6,1807.3,3.2078]
[1743357807441,1.10698,1807.4,1807.3,3.2078]
[1743357807843,4.01018,1807.4,1807.3,3.2078]
[1743357810843,4.01018,1807.4,1807.2,2.57359]
[1743357811056,1.5184,1807.3,1807.2,2.57359]
[1743357811244,1.5184,1807.3,1807.2,2.5736]
[1743357811643,1.4547,1807.4,1807.3,1.10704]
[1743357811951,4.08008,1807.4,1807.3,1.4665]
[1743357813151,2.9731,1807.4,1807.3,1.4665]
[1743357813847,4.08008,1807.4,1807.3,1.4665]
[1743357815256,2.9731,1807.4,1807.3,1.4665]
[1743357815453,0.00831025,1807.6,1807.5,1.10692]
[1743357815956,0.00831025,1807.6,1807.5,2.47742]
[1743357816842,1.11516025,1807.6,1807.5,1.3705]
[1743357817042,1.10704,1807.3,1807.2,1.6297]
[1743357817754,2.47854,1807.3,1807.2,1.6297]
[1743357818352,1.3715,1807.3,1807.2,3.0002]
[1743357818560,2.47854,1807.3,1807.2,1.3705]
[1743357818754,1.3715,1807.3,1807.2,1.3705]
[1743357818954,1.1071,1807.2,1807.1,3.2078]
[1743357819154,1.8617,1807.2,1807.1,3.2078]
[1743357819647,1.8617,1807.2,1806.8,1.11562025]
[1743357819648,1.10728,1806.9,1806.8,0.00831025]
[1743357819850,4.81826,1807.0,1806.8,0.00831025]
[1743357820050,2.61728,1806.9,1806.8,0.00831025]
[1743357820257,3.36428,1806.9,1806.8,0.00831025]
[1743357820860,1.10751,1806.6,1806.3,3.2078]
[1743357821155,3.711,1806.6,1806.4,1.10759]
[1743357821352,3.711,1806.6,1806.5,1.5045]
[1743357821755,3.711,1806.6,1806.5,2.61203]
[1743357821961,1.51831025,1806.7,1806.6,1.10747]
[1743357822163,0.00831025,1806.7,1806.6,1.5042]
[1743357822354,1.44791025,1806.7,1806.6,2.61167]
[1743357822654,1.44791025,1806.7,1806.6,1.5042]
[1743357823061,2.55532025,1806.7,1806.5,3.2078]
[1743357823258,1.10747,1806.6,1806.5,3.2078]
[1743357823452,1.4396,1806.6,1806.4,3.21611025]
[1743357823947,1.4396,1806.6,1806.5,1.5042]
[1743357825155,1.4396,1806.6,1806.5,2.61173]
[1743357826862,1.4396,1806.6,1806.5,1.5042]
[1743357827358,1.4396,1806.6,1806.5,2.61173]
[1743357829159,0.00831025,1806.7,1806.6,1.10747]
[1743357829359,0.00831025,1806.7,1806.6,5.82077]
[1743357830655,0.00831025,1806.7,1806.6,2.61297]
[1743357831165,0.00831025,1806.7,1806.6,5.82077]
[1743357831662,1.4555,1807.1,1806.7,2.76852]
[1743357831960,5.1675,1807.1,1807.0,1.10722]
[1743357832863,4.4597,1807.1,1807.0,1.10722]
[1743357833061,3.712,1807.1,1807.0,1.10722]
[1743357834166,1.5059,1807.1,1807.0,1.10722]
[1743357834654,0.00831025,1807.2,1807.1,1.10716]
[1743357835061,0.00831025,1807.2,1807.1,2.61286]
[1743357837570,0.00831025,1807.2,1807.1,3.36086]
[1743357838164,0.00831025,1807.2,1807.1,4.11936]
[1743357839572,1.11541025,1807.2,1807.1,1.5057]
[1743357839766,2.63371025,1807.2,1807.1,1.5057]
[1743357839967,2.63371025,1807.2,1807.0,3.2078]
[1743357840167,2.9164,1807.1,1807.0,3.2078]
[1743357840373,4.02356,1807.1,1807.0,3.2078]
[1743357840573,2.9164,1807.1,1807.0,4.31502]
[1743357841375,2.9164,1807.1,1807.0,1.10722]
[1743357841571,4.02357,1807.1,1806.9,5.68756]
[1743357841771,1.4689,1807.0,1806.9,4.5803]
[1743357842167,1.4689,1807.0,1806.9,5.68758]
[1743357842367,1.4689,1807.0,1806.9,7.31788]
[1743357843268,2.57612,1807.0,1806.9,6.2106]
[1743357843468,1.4689,1807.0,1806.9,7.31788]
[1743357843676,2.57612,1807.0,1806.9,6.2106]
[1743357844473,2.57612,1807.0,1806.9,4.8381]
[1743357845277,3.2078,1806.9,1805.5,5.05875871]
[1743357845578,3.2078,1805.8,1805.6,0.7152]
[1743357845775,3.2078,1806.2,1805.7,3.2078]
[1743357846075,2.57942,1806.2,1806.0,1.10781]
[1743357846279,2.57942,1806.2,1806.1,1.438]
[1743357847074,2.57941,1806.2,1806.1,1.438]
[1743357851190,4.6795,1806.2,1806.1,1.438]
[1743357851496,3.71931025,1806.3,1806.1,2.54575]
[1743357851685,4.82697025,1806.3,1806.1,2.54575]
[1743357851989,6.33427025,1806.3,1806.2,1.4645]
[1743357853093,1.10775,1806.2,1806.0,2.53769]
[1743357853285,2.53725,1806.2,1806.0,3.97659]
[1743357853685,1.4295,1806.1,1806.0,3.97659]
[1743357856090,4.82698025,1806.3,1806.2,1.10771]
[1743357856290,5.18801025,1806.3,1806.2,1.10771]
[1743357857389,1.47701025,1806.3,1806.2,1.10771]
[1743357860803,1.47701025,1806.3,1806.1,2.58013]
[1743357861094,2.58468025,1806.3,1806.1,2.58012]
[1743357861398,1.10771,1806.2,1806.1,2.58016]
[1743357861596,2.60621,1806.2,1806.1,2.58016]
[1743357862693,0.00831025,1806.3,1806.1,2.58016]
[1743357862694,0.00831025,1806.3,1806.2,1.10771]
[1743357862893,0.00831025,1806.3,1806.2,2.54791]
[1743357863795,5.04797,1806.8,1806.7,1.10741]
[1743357863999,6.9188,1807.0,1806.8,1.10735]
[1743357864194,7.6516,1807.0,1806.8,1.10735]
[1743357865004,1.3933,1806.9,1806.8,1.10735]
[1743357865204,5.1043,1806.9,1806.8,1.10735]
[1743357865705,5.1043,1806.9,1806.8,2.49915]
[1743357868307,5.1043,1806.9,1806.6,0.7522]
[1743357868602,1.10747,1806.6,1806.5,3.2078]
[1743357868807,1.10747,1806.6,1806.4,0.6882]
[1743357868808,1.10753,1806.5,1806.4,0.6882]
[1743357869110,2.1255,1806.5,1806.4,1.10759]
[1743357869407,2.1255,1806.5,1806.4,3.06289]
[1743357869605,2.1255,1806.5,1806.4,4.44849]
[1743357869812,1.4032,1806.5,1806.4,4.44849]
[1743357874414,0.7223,1806.7,1806.6,1.10747]
[1743357874609,5.2,1806.7,1806.6,1.10747]
[1743357875214,5.2,1806.7,1806.6,2.57867]
[1743357876813,6.30741,1806.7,1806.6,2.57867]
[1743357877015,5.2,1806.7,1806.6,2.57867]
[1743357877715,1.489,1806.7,1806.6,3.27847]
[1743357880714,6.9178,1807.6,1806.7,2.76852]
[1743357881019,3.92554,1807.5,1807.3,1.10702]
[1743357881220,2.47879,1807.4,1807.2,1.10708]
[1743357881516,1.10699,1807.4,1807.2,1.10708]
[1743357881717,4.31482,1807.4,1807.2,1.10706]
[1743357881915,4.3148,1807.4,1807.2,1.10706]
[1743357882322,3.2078,1807.4,1807.2,1.10705]
[1743357882714,3.2078,1807.4,1807.3,1.10704]
[1743357883019,4.3148,1807.4,1807.2,1.10708]
[1743357883211,3.2078,1807.4,1807.1,0.00831025]
[1743357883411,4.3149,1807.2,1807.1,0.00831025]
[1743357883615,3.2078,1807.2,1807.1,1.11547025]
[1743357883814,3.9422,1807.2,1807.1,1.11547025]
[1743357884621,0.7344,1807.2,1807.1,1.11547025]
[1743357885625,3.2078,1807.3,1807.2,1.1071]
[1743357885823,3.2078,1807.3,1807.2,2.4919]
[1743357886323,5.53058,1807.4,1807.2,2.4919]
[1743357886716,5.53058,1807.4,1807.2,1.3848]
[1743357886914,1.10704,1807.3,1807.2,1.3848]
[1743357888218,5.53062,1807.4,1807.2,1.3848]
[1743357889125,1.10704,1807.3,1807.2,1.3848]
[1743357890624,1.1071,1807.2,1807.1,0.00831025]
[1743357891020,1.10708,1807.3,1807.1,0.00831025]
[1743357891321,1.10708,1807.3,1807.1,1.11547025]
[1743357892628,4.81608,1807.3,1807.1,1.11547025]
[1743357893120,3.709,1807.3,1807.2,1.1071]
[1743357893320,3.709,1807.3,1807.2,2.5836]
[1743357894324,4.81604,1807.3,1807.2,1.4765]
[1743357894823,3.709,1807.3,1807.2,1.4765]
[1743357895030,3.2078,1807.4,1807.3,1.10704]
[1743357895221,3.2078,1807.4,1807.3,2.53314]
[1743357898125,0.00831025,1807.5,1807.4,1.10698]
[1743357898332,0.00831025,1807.5,1807.4,2.55198]
[1743357900728,1.10698,1807.4,1807.3,1.4261]
[1743357900929,2.2202,1807.4,1807.3,0.7201]
[1743357901130,0.00831025,1807.5,1807.3,0.7201]
[1743357901332,0.00831025,1807.5,1807.4,3.21928]
[1743357904532,0.05296,1807.8,1807.7,1.10679]
[1743357904737,1.50246,1807.8,1807.7,1.10679]
[1743357907035,1.50246,1807.8,1807.7,1.80019]
[1743357908042,1.50246,1807.8,1807.7,2.55949]
[1743357910235,3.9199,1808.1,1807.7,4.6605]
[1743357910439,4.6234,1808.1,1808.0,1.10661]
[1743357911445,4.6234,1808.1,1808.0,3.06211]
[1743357911642,3.2078,1808.1,1808.0,3.06211]
[1743357913751,3.2078,1808.1,1808.0,10.14504671]
[1743357914450,0.7233,1808.7,1808.0,10.14504671]
[1743357914451,1.10591,1809.2,1808.9,1.10603]
[1743357914648,1.10505,1810.6,1809.9,1.10544]
[1743357914851,49.99645709,1811.6,1809.0,54.893]
[1743357914852,50.70368449,1811.1,1810.6,1.10502]
[1743357915046,32.25417852,1811.1,1811.0,3.2078]
[1743357915352,32.25417852,1811.1,1810.8,1.10487]
[1743357915353,15.25001622,1811.0,1810.8,1.10487]
[1743357915554,16.69661622,1811.0,1810.7,8.33933967]
[1743357915856,19.13501622,1810.9,1810.8,3.94815705]
[1743357916054,19.84970597,1810.9,1810.7,0.008285]
[1743357916250,19.14001622,1810.8,1810.1,0.73852649]
[1743357916451,3.2078,1810.2,1809.7,3.7606]
[1743357916654,7.0998,1810.2,1809.7,3.2078]
[1743357916953,15.25001622,1810.1,1809.9,3.2078]
[1743357917155,3.2078,1810.6,1809.9,12.9438]
[1743357917353,0.7593,1810.8,1810.1,4.31309]
[1743357917354,0.00820086,1810.2,1810.1,4.31309]
[1743357917860,0.00820086,1810.2,1810.1,11.42020385]
[1743357918357,3.906,1810.7,1810.4,1.10512]
[1743357918560,3.906,1810.7,1810.1,14.61799745]
[1743357918561,15.25001622,1810.6,1810.1,12.11799745]
[1743357918859,15.25001622,1810.6,1810.5,0.69349369]
[1743357919060,3.936,1810.9,1810.5,3.90129369]
[1743357919253,15.25001622,1810.8,1810.5,3.90129369]
[1743357919452,16.62321622,1810.9,1810.7,3.2078]
[1743357919656,1.3732,1810.9,1810.8,1.1049]
[1743357919860,1.3732,1810.9,1810.8,1.79839369]
[1743357920059,1.1049,1810.8,1810.6,0.008285]
[1743357920253,4.581,1810.7,1810.1,4.8659]
[1743357920457,3.954,1810.6,1810.1,4.86591]
[1743357920654,5.3282,1810.5,1810.1,3.2078]
[1743357920964,15.25001622,1810.4,1810.1,4.31313]
[1743357921165,16.62321622,1810.3,1810.1,3.2078]
[1743357921459,1.3732,1810.3,1810.1,3.216085]
[1743357921660,15.25001622,1810.2,1810.1,3.216085]
[1743357922056,15.25001622,1810.2,1810.1,4.321415]